fUSD/lending_fUSD_20250906
["ID","MTS","AMOUNT","RATE_DAILY","PERIOD"]
[383921587,1757172693428,-400.0,0.00036438,8]
[383921588,1757172693438,-400.0,0.00036438,8]
[383921589,1757172693447,-400.0,0.00036438,8]
[383921590,1757172693457,-400.0,0.00036438,8]
[383921591,1757172693467,-400.0,0.00036438,8]
[383921592,1757172693476,-400.0,0.00036438,8]
[383921593,1757172693486,-400.0,0.00036438,8]
[383921594,1757172693495,-400.0,0.00036438,8]
[383921595,1757172693505,-400.0,0.00036438,8]
[383921596,1757172693514,-400.0,0.00036438,8]
[383921597,1757172693524,-400.0,0.00036438,8]
[383921598,1757172693533,-400.0,0.00036438,8]
[383921599,1757172693543,-400.0,0.00036438,8]
[383921600,1757172693553,-480.23,0.00036438,8]
[383921601,1757172693562,-400.0,0.00036438,8]
[383921602,1757172693572,-400.0,0.00036438,8]
[383921603,1757172693581,-400.0,0.00036438,8]
[383921604,1757172693590,-400.0,0.00036438,8]
[383921605,1757172693600,-400.0,0.00036438,8]
[383921606,1757172693609,-400.0,0.00036438,8]
[383921607,1757172693619,-512.18,0.00036438,8]
[383921608,1757172693628,-400.0,0.00036438,8]
[383921609,1757172693639,-400.0,0.00036438,8]
[383921610,1757172693649,-400.0,0.00036438,8]
[383921611,1757172693658,-400.0,0.00036438,8]
[383921612,1757172693668,-590.96,0.00036438,8]
[383921613,1757172693677,-400.0,0.00036438,8]
[383921614,1757172693686,-400.0,0.00036438,8]
[383921615,1757172693696,-400.0,0.00036438,8]
[383921616,1757172693705,-400.0,0.00036438,8]
[383921617,1757172693715,-400.0,0.00036438,8]
[383921618,1757172693724,-400.0,0.00036438,8]
[383921619,1757172693734,-400.0,0.00036438,8]
[383921620,1757172693744,-400.0,0.00036438,8]
[383921621,1757172693753,-400.0,0.00036438,8]
[383921622,1757172693770,-400.0,0.00036438,8]
[383921623,1757172693782,-400.0,0.00036438,8]
[383921624,1757172693792,-400.0,0.00036438,8]
[383921625,1757172693802,-400.0,0.00036438,8]
[383921626,1757172693812,-400.0,0.00036438,8]
[383921627,1757172693821,-400.0,0.00036438,8]
[383921628,1757172693831,-400.0,0.00036438,8]
[383921629,1757172693841,-400.0,0.00036438,8]
[383921630,1757172693851,-400.0,0.00036438,8]
[383921631,1757172693861,-400.0,0.00036438,8]
[383921632,1757172693871,-213.434917,0.00036438,30]
[383921633,1757172693880,-400.0,0.00036438,8]
[383921634,1757172693890,-400.0,0.00036438,8]
[383921635,1757172693900,-400.0,0.00036438,8]
[383921636,1757172693909,-400.0,0.00036438,8]
[383921637,1757172693919,-400.0,0.00036438,8]
[383921638,1757172693930,-608.37,0.00036438,8]
[383921639,1757172693940,-400.0,0.00036438,8]
[383921640,1757172693949,-434.46,0.00036438,8]
[383921641,1757172693959,-209.986377,0.00036438,30]
[383921642,1757172693969,-400.0,0.00036438,8]
[383921643,1757172693979,-400.0,0.00036438,8]
[383921644,1757172693989,-209.986377,0.00036438,30]
[383921645,1757172693999,-209.986377,0.00036438,30]
[383921646,1757172694012,-209.986369,0.00036438,30]
[383921647,1757172694022,-598.33,0.00036438,8]
[383921648,1757172694032,-502.57,0.00036438,8]
[383921649,1757172694041,-400.0,0.00036438,8]
[383921650,1757172694051,-400.0,0.00036438,8]
[383921651,1757172694060,-400.0,0.00036438,8]
[383921652,1757172694070,-509.06,0.00036438,8]
[383921653,1757172694080,-400.0,0.00036438,8]
[383921654,1757172694090,-400.0,0.00036438,8]
[383921655,1757172694100,-400.0,0.00036438,8]
[383921656,1757172694110,-400.0,0.00036438,8]
[383921657,1757172694121,-400.0,0.00036438,8]
[383921658,1757172694131,-173.1057123,0.00036438,8]
[383921659,1757172694141,-400.0,0.00036438,8]
[383921660,1757172694150,-435.86,0.00036438,8]
[383921661,1757172694161,-400.0,0.00036438,8]
[383921662,1757172694170,-1534.12,0.00036438,8]
[383921663,1757172694179,-400.0,0.00036438,8]
[383921664,1757172694188,-412.22421887,0.00036438,8]
[383921665,1757172694198,-400.0,0.00036438,8]
[383921666,1757172694208,-2648.5,0.00036438,8]
[383921667,1757172694218,-400.0,0.00036438,8]
[383921668,1757172694227,-1732.85,0.00036438,8]
[383921669,1757172694236,-400.0,0.00036438,8]
[383921670,1757172694246,-400.0,0.00036438,8]
[383921671,1757172694256,-1845.16,0.00036438,8]
[383921672,1757172694265,-170.78781685,0.00036438,8]
[383921673,1757172694275,-299.191466,0.00036438,30]
[383921674,1757172694284,-626.948868,0.00036438,30]
[383921675,1757172694294,-299.191466,0.00036438,30]
[383921676,1757172694303,-400.0,0.00036438,8]
[383921677,1757172694313,-626.948868,0.00036438,30]
[383921678,1757172694323,-299.191466,0.00036438,30]
[383921679,1757172694332,-495.11,0.00036438,8]
[383921680,1757172694342,-626.948868,0.00036438,30]
[383921681,1757172694352,-299.191466,0.00036438,30]
[383921682,1757172694361,-151.0,0.00036438,30]
[383921683,1757172694371,-626.948871,0.00036438,30]
[383921684,1757172694380,-400.0,0.00036438,8]
[383921685,1757172694389,-400.0,0.00036438,8]
[383921686,1757172694399,-1089.37,0.00036438,8]
[383921687,1757172694408,-400.0,0.00036438,8]
[383921688,1757172694418,-400.0,0.00036438,8]
[383921689,1757172694428,-400.0,0.00036438,8]
[383921690,1757172694438,-400.0,0.00036438,8]
[383921691,1757172694448,-409.91,0.00036438,8]
[383921692,1757172694458,-400.0,0.00036438,8]
[383921693,1757172694468,-2279.31,0.00036438,8]
[383921694,1757172694477,-400.0,0.00036438,8]
[383921695,1757172694487,-423.72,0.00036438,8]
[383921696,1757172694496,-400.0,0.00036438,8]
[383921697,1757172694505,-1049.01,0.00036438,8]
[383921698,1757172694515,-400.0,0.00036438,8]
[383921699,1757172694524,-340.38588294,0.00036438,8]
[383921700,1757172694534,-400.0,0.00036438,8]
[383921701,1757172694544,-457.92,0.00036438,8]
[383921702,1757172694553,-427.44,0.00036438,8]
[383921703,1757172694562,-400.0,0.00036438,8]
[383921704,1757172694572,-2989.69,0.00036438,8]
[383921705,1757172694581,-303.621186,0.00036438,8]
[383921706,1757172694591,-255.724684,0.00036438,8]
[383921707,1757172694600,-479.57,0.00036438,8]
[383921708,1757172694609,-571.91,0.00036438,8]
[383921709,1757172694618,-2140.52,0.00036438,8]
[383921710,1757172694628,-400.0,0.00036438,8]
[383921711,1757172694637,-400.0,0.00036438,8]
[383921712,1757172694647,-756.95,0.00036438,8]
[383921713,1757172694656,-400.0,0.00036438,8]
[383921714,1757172694666,-400.0,0.00036438,8]
[383921715,1757172694675,-400.0,0.00036438,8]
[383921716,1757172694685,-400.0,0.00036438,8]
[383921717,1757172694695,-500.0,0.00036438,2]
[383921718,1757172694703,-673.56,0.00036438,8]
[383921719,1757172694713,-400.0,0.00036438,8]
[383921720,1757172694724,-400.0,0.00036438,8]
[383921721,1757172694734,-423.16302,0.00036438,8]
[383921722,1757172694744,-400.0,0.00036438,8]
[383921723,1757172694754,-1233.86,0.00036438,8]
[383921724,1757172694764,-945.88,0.00036438,8]
[383921725,1757172694774,-400.0,0.00036438,8]
[383921726,1757172694783,-419.78,0.00036438,8]
[383921727,1757172694793,-400.0,0.00036438,8]
[383921728,1757172694804,-604.44,0.00036438,8]
[383921729,1757172694820,-400.0,0.00036438,8]
[383921730,1757172694831,-992.17,0.00036438,8]
[383921731,1757172694842,-400.0,0.00036438,8]
[383921732,1757172694853,-1045.05,0.00036438,8]
[383921733,1757172694863,-400.0,0.00036438,8]
[383921734,1757172694873,-429.91,0.00036438,8]
[383921735,1757172694883,-400.0,0.00036438,8]
[383921736,1757172694893,-400.0,0.00036438,8]
[383921737,1757172694902,-400.0,0.00036438,8]
[383921738,1757172694912,-400.0,0.00036438,8]
[383921739,1757172694923,-413.34,0.00036438,8]
[383921740,1757172694933,-400.0,0.00036438,8]
[383921741,1757172694945,-400.0,0.00036438,8]
[383921742,1757172694955,-400.0,0.00036438,8]
[383921743,1757172694965,-400.0,0.00036438,8]
[383921744,1757172694975,-400.0,0.00036438,8]
[383921745,1757172694984,-400.0,0.00036438,8]
[383921746,1757172694994,-400.0,0.00036438,8]
[383921747,1757172695004,-790.23,0.00036438,8]
[383921748,1757172695014,-400.0,0.00036438,8]
[383921749,1757172695025,-400.0,0.00036438,8]
[383921750,1757172695035,-400.0,0.00036438,8]
[383921751,1757172695045,-2436.64,0.00036438,8]
[383921752,1757172695056,-400.0,0.00036438,8]
[383921753,1757172695066,-400.0,0.00036438,8]
[383921754,1757172695076,-1094.56,0.00036438,8]
[383921755,1757172695086,-400.0,0.00036438,8]
[383921756,1757172695096,-400.0,0.00036438,8]
[383921757,1757172695107,-400.0,0.00036438,8]
[383921758,1757172695117,-400.0,0.00036438,8]
[383921759,1757172695126,-336.73892679,0.00036438,8]
[383921760,1757172695136,-730.61,0.00036438,8]
[383921761,1757172695146,-535.79,0.00036438,8]
[383921762,1757172695156,-400.0,0.00036438,8]
[383921763,1757172695166,-651.47,0.00036438,8]
[383921764,1757172695176,-400.0,0.00036438,8]
[383921765,1757172695185,-418.47,0.00036438,8]
[383921766,1757172695195,-2213.66,0.00036438,8]
[383921767,1757172695205,-458.46,0.00036438,8]
[383921768,1757172695215,-652.06,0.00036438,8]
[383921769,1757172695224,-455.66,0.00036438,8]
[383921770,1757172695234,-400.0,0.00036438,8]
[383921771,1757172695244,-400.0,0.00036438,8]
[383921772,1757172695256,-400.0,0.00036438,8]
[383921773,1757172695268,-453.6,0.00036438,8]
[383921774,1757172695278,-255.67869273,0.00036438,8]
[383921775,1757172695287,-400.0,0.00036438,8]
[383921776,1757172695298,-400.0,0.00036438,8]
[383921777,1757172695308,-1828.0,0.00036438,8]
[383921778,1757172695318,-644.18,0.00036438,8]
[383921779,1757172695328,-1117.06,0.00036438,8]
[383921780,1757172695338,-400.0,0.00036438,8]
[383921781,1757172695349,-553.32,0.00036438,8]
[383921782,1757172695359,-1820.35,0.00036438,8]
[383921783,1757172695369,-400.0,0.00036438,8]
[383921784,1757172695379,-400.0,0.00036438,8]
[383921785,1757172695389,-671.63,0.00036438,8]
[383921786,1757172695399,-400.0,0.00036438,8]
[383921787,1757172695409,-1362.35,0.00036438,8]
[383921788,1757172695419,-1175.85,0.00036438,8]
[383921789,1757172695429,-400.0,0.00036438,8]
[383921790,1757172695440,-400.0,0.00036438,8]
[383921791,1757172695450,-400.0,0.00036438,8]
[383921792,1757172695461,-631.4,0.00036438,8]
[383921793,1757172695471,-800.0,0.00036438,120]
[383921794,1757172695481,-400.0,0.00036438,8]
[383921795,1757172695491,-400.0,0.00036438,8]
[383921796,1757172695501,-400.0,0.00036438,8]
[383921797,1757172695513,-400.0,0.00036438,8]
[383921798,1757172695523,-400.0,0.00036438,8]
[383921799,1757172695534,-400.0,0.00036438,8]
[383921800,1757172695544,-400.0,0.00036438,8]
[383921801,1757172695554,-400.0,0.00036438,8]
[383921802,1757172695564,-1093.83,0.00036438,8]
[383921803,1757172695574,-400.0,0.00036438,8]
[383921804,1757172695584,-490.39,0.00036438,8]
[383921805,1757172695595,-400.0,0.00036438,8]
[383921806,1757172695606,-400.0,0.00036438,8]
[383921807,1757172695616,-543.1,0.00036438,8]
[383921808,1757172695627,-428.7,0.00036438,8]
[383921809,1757172695638,-400.0,0.00036438,8]
[383921810,1757172695648,-400.0,0.00036438,8]
[383921811,1757172695658,-400.0,0.00036438,8]
[383921812,1757172695668,-400.0,0.00036438,8]
[383921813,1757172695678,-600.99,0.00036438,8]
[383921814,1757172695688,-400.0,0.00036438,8]
[383921815,1757172695700,-515.24,0.00036438,8]
[383921816,1757172695711,-400.0,0.00036438,8]
[383921817,1757172695721,-400.0,0.00036438,8]
[383921818,1757172695732,-533.89,0.00036438,8]
[383921819,1757172695742,-400.0,0.00036438,8]
[383921820,1757172695752,-400.0,0.00036438,8]
[383921821,1757172695763,-501.41,0.00036438,8]
[383921822,1757172695773,-868.68,0.00036438,8]
[383921823,1757172695783,-400.0,0.00036438,8]
[383921824,1757172695795,-472.9,0.00036438,8]
[383921825,1757172695808,-966.02,0.00036438,8]
[383921826,1757172695818,-466.62,0.00036438,8]
[383921827,1757172695828,-400.0,0.00036438,8]
[383921828,1757172695838,-1411.12,0.00036438,8]
[383921829,1757172695850,-400.0,0.00036438,8]
[383921830,1757172695860,-578.15,0.00036438,8]
[383921831,1757172695870,-400.0,0.00036438,8]
[383921832,1757172695881,-400.0,0.00036438,8]
[383921833,1757172695891,-400.0,0.00036438,8]
[383921834,1757172695901,-1435.63,0.00036438,8]
[383921835,1757172695911,-400.0,0.00036438,8]
[383921836,1757172695922,-788.1,0.00036438,8]
[383921837,1757172695933,-400.0,0.00036438,8]
[383921838,1757172695943,-400.0,0.00036438,8]
[383921839,1757172695954,-619.13,0.00036438,8]
[383921840,1757172695964,-400.0,0.00036438,8]
[383921841,1757172695974,-400.0,0.00036438,5]
[383921842,1757172695984,-619.22,0.00036438,8]
[383921843,1757172695994,-400.0,0.00036438,8]
[383921844,1757172696005,-3490.54,0.00036438,8]
[383921845,1757172696015,-400.0,0.00036438,8]
[383921846,1757172696025,-2760.38,0.00036438,8]
[383921847,1757172696035,-400.0,0.00036438,8]
[383921848,1757172696045,-435.82,0.00036438,8]
[383921849,1757172696055,-415.83,0.00036438,8]
[383921850,1757172696065,-400.0,0.00036438,8]
[383921851,1757172696075,-424.35,0.00036438,8]
[383921852,1757172696086,-2385.83,0.00036438,8]
[383921853,1757172696096,-405.38263238,0.00036438,8]
[383921854,1757172696107,-400.0,0.00036438,8]
[383921855,1757172696119,-400.0,0.00036438,8]
[383921856,1757172696129,-574.35,0.00036438,8]
[383921857,1757172696139,-400.0,0.00036438,8]
[383921858,1757172696150,-401.73,0.00036438,8]
[383921859,1757172696160,-400.0,0.00036438,8]
[383921860,1757172696171,-400.0,0.00036438,8]
[383921861,1757172696182,-314.55552971,0.00036438,8]
[383921862,1757172696192,-1126.95,0.00036438,8]
[383921863,1757172696203,-491.37,0.00036438,8]
[383921864,1757172696213,-400.0,0.00036438,8]
[383921865,1757172696223,-4593.42,0.00036438,8]
[383921866,1757172696234,-1283.79,0.00036438,8]
[383921867,1757172696245,-400.0,0.00036438,8]
[383921868,1757172696260,-400.0,0.00036438,8]
[383921869,1757172696270,-574.59,0.00036438,8]
[383921870,1757172696280,-400.0,0.00036438,8]
[383921871,1757172696290,-487.5,0.00036438,8]
[383921872,1757172696300,-404.92271199,0.00036438,8]
[383921873,1757172696310,-400.0,0.00036438,8]
[383921874,1757172696320,-513.57895522,0.00036438,8]
[383921875,1757172696330,-400.0,0.00036438,8]
[383921876,1757172696341,-400.0,0.00036438,8]
[383921877,1757172696352,-400.0,0.00036438,8]
[383921878,1757172696362,-400.0,0.00036438,8]
[383921879,1757172696372,-400.0,0.00036438,8]
[383921880,1757172696382,-531.23,0.00036438,8]
[383921881,1757172696392,-400.0,0.00036438,8]
[383921882,1757172696404,-400.0,0.00036438,8]
[383921883,1757172696414,-425.4,0.00036438,8]
[383921884,1757172696424,-176.43104416,0.00036438,8]
[383921885,1757172696434,-200.0,0.00036464,2]
[383921886,1757172696445,-150.0,0.00036473,5]
[383921887,1757172696455,-369.7,0.00036515,2]
[383921888,1757172696466,-466.22821208,0.00036519,7]
[383921889,1757172696476,-348.56,0.00036534,2]
[383921890,1757172696486,-199.0,0.00036574,9]
[383921891,1757172696497,-150.0,0.00036574,120]
[383921892,1757172696507,-855.77024084,0.00036588,2]
[383921893,1757172696518,-369.7,0.00036592,2]
[383921894,1757172696528,-1822.16175556,0.00036609,27]
[383921895,1757172696538,-868.72183626,0.00036612,2]
[383921896,1757172696549,-1425.0,0.00036612,2]
[383921897,1757172696560,-500.0,0.00036612,2]
[383921898,1757172696570,-222.7758,0.00036612,30]
[383921899,1757172696580,-1425.0,0.00036659,2]
[383921900,1757172696591,-444.0,0.00036677,120]
[383921901,1757172696600,-400.0,0.00036711,8]
[383921902,1757172696611,-214.22371474,0.00036711,8]
[383921903,1757172696620,-400.0,0.00036711,8]
[383921904,1757172696630,-400.0,0.00036711,8]
[383921905,1757172696640,-400.0,0.00036711,8]
[383921906,1757172696650,-372.07265336,0.00036711,8]
[383921907,1757172696660,-354.6738431,0.00036711,8]
[383921908,1757172696671,-421.5304131,0.00036711,8]
[383921909,1757172696680,-400.0,0.00036711,8]
[383921910,1757172696690,-400.0,0.00036711,8]
[383921911,1757172696700,-459.66,0.00036711,8]
[383921912,1757172696710,-496.66,0.00036711,8]
[383921913,1757172696721,-400.0,0.00036711,8]
[383921914,1757172696731,-324.56678838,0.00036711,8]
[383921915,1757172697375,-75.43321162,0.00036711,8]
[383921916,1757172697385,-585.53,0.00036711,8]
[383921917,1757172697398,-400.0,0.00036711,8]
[383921918,1757172697407,-400.0,0.00036711,8]
[383921919,1757172697416,-400.0,0.00036711,8]
[383921920,1757172697426,-430.85397396,0.00036711,8]
[383921921,1757172697435,-400.0,0.00036711,8]
[383921922,1757172697445,-400.0,0.00036711,8]
[383921923,1757172697454,-400.0,0.00036711,8]
[383921924,1757172697464,-400.0,0.00036711,8]
[383921925,1757172697473,-400.0,0.00036711,8]
[383921926,1757172697483,-400.0,0.00036711,8]
[383921927,1757172697496,-400.0,0.00036711,8]
[383921928,1757172697505,-400.0,0.00036711,8]
[383921929,1757172697514,-400.0,0.00036711,8]
[383921930,1757172697523,-400.0,0.00036711,8]
[383921931,1757172697532,-413.37,0.00036711,8]
[383921932,1757172697542,-424.44326073,0.00036711,8]
[383921933,1757172697551,-455.35,0.00036711,8]
[383921934,1757172697560,-400.0,0.00036711,8]
[383921935,1757172697570,-400.0,0.00036711,8]
[383921936,1757172697579,-255.27957204,0.00036711,8]
[383921937,1757172697588,-400.0,0.00036711,8]
[383921938,1757172697598,-400.0,0.00036711,8]
[383921939,1757172697609,-126.71099432,0.00036711,8]
[383921940,1757172697684,-61.11665052,0.00032877,7]
[383921941,1757172698106,-160.0,0.00022077,14]
[383921942,1757172698116,-98.77,0.00022077,14]
[383921943,1757172698136,-61.23,0.00022077,14]
[383921944,1757172698145,-160.0,0.00022077,14]
[383921945,1757172698155,-160.0,0.00022077,14]
[383921946,1757172698164,-160.0,0.00022077,14]
[383921947,1757172698174,-160.0,0.00022077,14]
[383921948,1757172698184,-173.03,0.00027908,7]
[383921949,1757172698193,-273.70314748,0.00032877,7]
[383921950,1757172698202,-92.65248502,0.00032877,7]
[383921951,1757172698222,-242.16731298,0.00032877,7]
[383921952,1757172698231,-334.819798,0.00032877,7]
[383921953,1757172698241,-334.819798,0.00032877,7]
[383921954,1757172698251,-334.819798,0.00032877,7]
[383921955,1757172698263,-153.598815,0.00032877,7]
[383921956,1757172698273,-334.819798,0.00032877,7]
[383921957,1757172698282,-334.819798,0.00032877,7]
[383921958,1757172698291,-334.819798,0.00032877,7]
[383921959,1757172698301,-400.0,0.0003589,8]
[383921960,1757172698311,-400.0,0.0003589,8]
[383921961,1757172698321,-400.0,0.00036164,8]
[383921962,1757172698331,-400.0,0.00036164,8]
[383921963,1757172698341,-400.0,0.00036437,8]
[383921964,1757172698351,-400.0,0.00036438,8]
[383921965,1757172698361,-400.0,0.00036438,8]
[383921966,1757172698370,-273.28900568,0.00036711,8]
[383921967,1757172698379,-400.0,0.00036711,8]
[383921968,1757172698389,-400.0,0.00036711,8]
[383921969,1757172698398,-400.0,0.00036711,8]
[383921970,1757172698409,-400.0,0.00036711,8]
[383921971,1757172698418,-466.07,0.00036711,8]
[383921972,1757172698427,-400.0,0.00036711,8]
[383921973,1757172698438,-400.0,0.00036711,8]
[383921974,1757172698448,-220.89659131,0.00036711,8]
[383921975,1757172698458,-400.0,0.00036711,8]
[383921976,1757172698468,-400.0,0.00036711,8]
[383921977,1757172698477,-400.0,0.00036711,8]
[383921978,1757172698487,-400.0,0.00036711,8]
[383921979,1757172698497,-400.0,0.00036711,8]
[383921980,1757172698507,-400.0,0.00036711,8]
[383921981,1757172698516,-414.18,0.00036711,8]
[383921982,1757172698526,-400.0,0.00036711,8]
[383921983,1757172698535,-400.0,0.00036711,8]
[383921984,1757172698545,-459.72,0.00036711,8]
[383921985,1757172698555,-400.0,0.00036711,8]
[383921986,1757172698565,-400.0,0.00036711,8]
[383921987,1757172698575,-400.0,0.00036711,8]
[383921988,1757172698584,-400.0,0.00036711,8]
[383921989,1757172698594,-400.0,0.00036711,8]
[383921990,1757172698603,-207.1744462,0.00036711,8]
[383921991,1757172698612,-400.0,0.00036711,8]
[383921992,1757172698622,-400.0,0.00036711,8]
[383921993,1757172698631,-400.0,0.00036711,8]
[383921994,1757172698641,-400.0,0.00036711,8]
[383921995,1757172698651,-400.0,0.00036711,8]
[383921996,1757172698660,-400.0,0.00036711,8]
[383921997,1757172698670,-400.0,0.00036711,8]
[383921998,1757172698679,-228.16293238,0.00036711,8]
[383921999,1757172698688,-400.0,0.00036711,8]
[383922000,1757172698697,-400.0,0.00036711,8]
[383922001,1757172698707,-400.0,0.00036711,8]
[383922002,1757172698717,-400.0,0.00036711,8]
[383922003,1757172698733,-400.0,0.00036711,8]
[383922004,1757172698742,-400.0,0.00036711,8]
[383922005,1757172698752,-400.0,0.00036711,8]
[383922006,1757172698761,-400.0,0.00036711,8]
[383922007,1757172698771,-400.0,0.00036711,8]
[383922008,1757172698780,-476.3,0.00036711,8]
[383922009,1757172698789,-400.0,0.00036711,8]
[383922010,1757172698799,-400.0,0.00036711,8]
[383922011,1757172698808,-400.0,0.00036711,8]
[383922012,1757172698818,-400.0,0.00036711,8]
[383922013,1757172698827,-400.0,0.00036711,8]
[383922014,1757172698836,-400.26514073,0.00036711,8]
[383922015,1757172698846,-400.0,0.00036711,8]
[383922016,1757172698855,-400.0,0.00036711,8]
[383922017,1757172698865,-400.0,0.00036711,8]
[383922018,1757172698874,-400.0,0.00036711,8]
[383922019,1757172698884,-400.0,0.00036711,8]
[383922020,1757172698893,-400.0,0.00036711,8]
[383922021,1757172698903,-400.0,0.00036711,8]
[383922022,1757172698912,-400.0,0.00036711,8]
[383922023,1757172698923,-416.20032933,0.00036711,8]
[383922024,1757172698933,-400.0,0.00036711,8]
[383922025,1757172698943,-400.0,0.00036711,8]
[383922026,1757172698953,-400.0,0.00036711,8]
[383922027,1757172698963,-639.08,0.00036711,8]
[383922028,1757172698972,-400.0,0.00036711,8]
[383922029,1757172698981,-400.0,0.00036711,8]
[383922030,1757172698991,-400.0,0.00036711,8]
[383922031,1757172699000,-400.0,0.00036711,8]
[383922032,1757172699010,-400.0,0.00036711,8]
[383922033,1757172699020,-400.0,0.00036711,8]
[383922034,1757172699029,-400.0,0.00036711,8]
[383922035,1757172699039,-400.0,0.00036711,8]
[383922036,1757172699048,-400.0,0.00036711,8]
[383922037,1757172699058,-400.0,0.00036711,8]
[383922038,1757172699068,-400.0,0.00036711,8]
[383922039,1757172699079,-400.0,0.00036711,8]
[383922040,1757172699090,-400.0,0.00036711,8]
[383922041,1757172699101,-400.0,0.00036711,8]
[383922042,1757172699112,-400.0,0.00036711,8]
[383922043,1757172699122,-400.0,0.00036711,8]
[383922044,1757172699131,-400.0,0.00036711,8]
[383922045,1757172699141,-400.0,0.00036711,8]
[383922046,1757172699150,-642.97,0.00036711,8]
[383922047,1757172699160,-400.0,0.00036711,8]
[383922048,1757172699170,-656.31,0.00036711,8]
[383922049,1757172699179,-400.0,0.00036711,8]
[383922050,1757172699188,-400.0,0.00036711,8]
[383922051,1757172699198,-400.0,0.00036711,8]
[383922052,1757172699207,-400.0,0.00036711,8]
[383922053,1757172699217,-400.0,0.00036711,8]
[383922054,1757172699312,-402.06652083,0.00036711,8]
[383922055,1757172699322,-400.0,0.00036711,8]
[383922056,1757172699332,-400.0,0.00036711,8]
[383922057,1757172699342,-400.0,0.00036711,8]
[383922058,1757172699351,-400.0,0.00036711,8]
[383922059,1757172699361,-400.0,0.00036711,8]
[383922060,1757172699370,-463.88369009,0.00036711,8]
[383922061,1757172699380,-464.88,0.00036711,8]
[383922062,1757172699389,-400.0,0.00036711,8]
[383922063,1757172699398,-400.0,0.00036711,8]
[383922064,1757172699410,-445.43,0.00036711,8]
[383922065,1757172699419,-400.0,0.00036711,8]
[383922066,1757172699429,-400.0,0.00036711,8]
[383922067,1757172699438,-400.0,0.00036711,8]
[383922068,1757172699447,-400.0,0.00036711,8]
[383922069,1757172699456,-400.0,0.00036711,8]
[383922070,1757172699466,-400.0,0.00036711,8]
[383922071,1757172699475,-400.0,0.00036711,8]
[383922072,1757172699484,-400.0,0.00036711,8]
[383922073,1757172699493,-400.0,0.00036711,8]
[383922074,1757172699503,-406.69,0.00036711,8]
[383922075,1757172699511,-400.0,0.00036711,8]
[383922076,1757172699521,-400.0,0.00036711,8]
[383922077,1757172699530,-400.0,0.00036711,8]
[383922078,1757172699539,-400.0,0.00036711,8]
[383922079,1757172699549,-400.0,0.00036711,8]
[383922080,1757172699558,-400.0,0.00036711,8]
[383922081,1757172699568,-400.0,0.00036711,8]
[383922082,1757172699577,-400.0,0.00036711,8]
[383922083,1757172699588,-400.0,0.00036711,8]
[383922084,1757172699597,-433.34,0.00036711,8]
[383922085,1757172699607,-400.0,0.00036711,8]
[383922086,1757172699616,-400.0,0.00036711,8]